[Event "WJCC U20 Girls 2019"]
[Site "New Delhi"]
[Date "2019.10.23"]
[Round "9.10"]
[White "Yakubbaeva, Nilufar"]
[Black "Chitlange Sakshi"]
[Result "0-1"]
[ECO "B10"]
[WhiteElo "2281"]
[BlackElo "2175"]
[Annotator "ChessBase"]
[PlyCount "111"]
[EventDate "2019.10.15"]
[EventType "swiss"]
[EventCountry "IND"]
[SourceTitle "playchess.com"]
[Source "ChessBase"]
[SourceQuality "1"]
[TimeControl "40/5400+30:1800+30"]

1. e4 {[%emt 0:00:00]} c6 {[%emt 0:00:00]} 2. Nf3 {[%emt 0:00:00]} d5 {[%emt 0:00:16]} 3. exd5 {[%emt 0:00:00]} cxd5 {[%emt 0:00:06]} 4. Ne5 {[%emt 0:00:01]} Nf6 {[%emt 0:05:13]} 5. d4 {[%emt 0:00:15]} g6 {[%emt 0:02:55]} 6. c3 {[%emt 0:00:16]} Bg7 {[%emt 0:01:02]} 7. Bd3 {[%emt 0:00:16]} O-O {[%emt 0:04:01]} 8. O-O {[%emt 0:00:09]} Nfd7 {[%emt 0:02:51]} 9. Qe2 {[%emt 0:02:54]} Nc6 {[%emt 0:02:07]} 10. f4 {[%emt 0:00:36]} Re8 {[%emt 0:03:28]} 11. Nd2 {[%emt 0:03:01]} Qc7 {[%emt 0:02:40]} 12. Ndf3 {[%emt 0:06:09]} Nf8 {[%emt 0:04:31]} 13. f5 {[%emt 0:08:53]} Bxf5 {[%emt 0:08:26]} 14. Bxf5 {[%emt 0:06:38]} gxf5 {[%emt 0:00:06]} 15. Nxc6 {[%emt 0:06:44]} bxc6 {[%emt 0:02:24]} 16. Nh4 {[%emt 0:02:38]} e6 {[%emt 0:02:59]} 17. Qh5 {[%emt 0:07:29]} f6 {[%emt 0:05:15]} 18. g4 {[%emt 0:02:54]} fxg4 {[%emt 0:03:49]} 19. Qxg4 {[%emt 0:00:31]} Qf7 {[%emt 0:03:38]} 20. Rf2 {[%emt 0:09:01]} Ng6 {[%emt 0:09:16]} 21. Rg2 {[%emt 0:01:46]} Nxh4 {[%emt 0:02:21]} 22. Qxh4 {[%emt 0:00:07]} Kh8 {[%emt 0:02:36]} 23. Bd2 {[%emt 0:02:30]} Bf8 {[%emt 0:07:10]} 24. Rf1 {[%emt 0:03:46]} Be7 {[%emt 0:00:45]} 25. Kh1 {[%emt 0:01:26]} Rg8 {[%emt 0:00:54]} 26. Rxg8+ {[%emt 0:00:36]} Rxg8 {[%emt 0:00:15]} 27. Bf4 {[%emt 0:03:34]} Qg6 {[%emt 0:04:47]} 28. Bg3 {[%emt 0:00:19]} Qd3 {[%emt 0:09:53]} 29. Qf4 {[%emt 0:04:53]} Rg4 {[%emt 0:00:57]} 30. Qf2 {[%emt 0:04:39]} Re4 {[%emt 0:03:42]} 31. Rg1 {[%emt 0:08:00]} Qe2 {[%emt 0:03:51]} 32. Qxe2 {[%emt 0:00:44]} Rxe2 {[%emt 0:00:01]} 33. Bf4 {[%emt 0:00:08]} Bf8 {[%emt 0:01:15]} 34. Rg2 {[%emt 0:02:46]} Re1+ {[%emt 0:00:26]} 35. Rg1 {[%emt 0:00:06]} Rxg1+ {[%emt 0:00:23]} 36. Kxg1 {[%emt 0:00:05]} Kg7 {[%emt 0:00:06]} 37. h4 {[%emt 0:00:22]} Kg6 {[%emt 0:00:11]} 38. Kf2 {[%emt 0:02:05]} Kf5 {[%emt 0:00:22]} 39. Bb8 {[%emt 0:00:39]} a6 {[%emt 0:00:12]} 40. Kf3 {[%emt 0:00:09]} h5 {[%emt 0:01:46]} 41. b3 {[%emt 0:30:43]} e5 {[%emt 0:30:28]} 42. dxe5 {[%emt 0:01:34]} fxe5 {[%emt 0:00:01]} 43. c4 {[%emt 0:00:27]} Be7 {[%emt 0:02:27]} 44. Ba7 {[%emt 0:01:53]} Bxh4 {[%emt 0:00:25]} 45. cxd5 {[%emt 0:00:55]} cxd5 {[%emt 0:00:01]} 46. a3 {[%emt 0:00:20]} Be7 {[%emt 0:01:04]} 47. b4 {[%emt 0:00:05]} h4 {[%emt 0:00:16]} 48. Bf2 {[%emt 0:00:14]} e4+ {[%emt 0:00:27]} 49. Kg2 {[%emt 0:01:28]} Kf4 {[%emt 0:00:38]} 50. Be1 {[%emt 0:01:02]} e3 {[%emt 0:00:36]} 51. a4 {[%emt 0:00:13]} d4 {[%emt 0:00:29]} 52. b5 {[%emt 0:01:06]} axb5 {[%emt 0:00:04]} 53. axb5 Bd8 {[%emt 0:01:28]} 54. Bb4 {[%emt 0:02:13]} d3 {[%emt 0:00:34]} 55. Kf1 {[%emt 0:01:01]} Kf3 {[%emt 0:00:13]} 56. Ke1 0-1

[Event "WJCC U20 Girls 2019"]
[Site "New Delhi"]
[Date "2019.10.23"]
[Round "9.11"]
[White "Cervantes Landeiro, Thalia"]
[Black "Arpita, Mukherjee"]
[Result "1/2-1/2"]
[ECO "E81"]
[WhiteElo "2176"]
[BlackElo "2271"]
[Annotator "ChessBase"]
[PlyCount "105"]
[EventDate "2019.10.15"]
[EventType "swiss"]
[EventCountry "IND"]
[SourceTitle "playchess.com"]
[Source "ChessBase"]
[SourceQuality "1"]
[TimeControl "40/5400+30:1800+30"]

1. d4 {[%emt 0:00:00]} Nf6 {[%emt 0:00:08]} 2. c4 {[%emt 0:00:00]} g6 {[%emt 0:00:06]} 3. f3 {[%emt 0:00:00]} Bg7 {[%emt 0:00:21]} 4. e4 {[%emt 0:00:00]} d6 {[%emt 0:00:06]} 5. Nc3 {[%emt 0:00:06]} O-O {[%emt 0:00:11]} 6. Nge2 {[%emt 0:00:07]} c5 {[%emt 0:01:52]} 7. Be3 {[%emt 0:00:07]} Nc6 {[%emt 0:01:33]} 8. d5 {[%emt 0:00:16]} Ne5 {[%emt 0:00:18]} 9. Ng3 {[%emt 0:00:11]} h5 {[%emt 0:00:39]} 10. Be2 {[%emt 0:00:38]} e6 {[%emt 0:06:42]} 11. O-O {[%emt 0:03:13]} exd5 {[%emt 0:02:49]} 12. cxd5 {[%emt 0:00:21]} a6 {[%emt 0:04:15]} 13. a4 {[%emt 0:01:27]} Nh7 {[%emt 0:06:24]} 14. Qd2 {[%emt 0:02:22]} h4 {[%emt 0:13:06]} 15. Nh1 {[%emt 0:00:17]} g5 {[%emt 0:03:46]} 16. f4 {[%emt 0:12:10]} gxf4 {[%emt 0:02:18]} 17. Bxf4 {[%emt 0:01:23]} Kh8 {[%emt 0:13:47]} 18. Nf2 {[%emt 0:05:38]} Rg8 {[%emt 0:01:25]} 19. Kh1 {[%emt 0:02:37]} Qe7 {[%emt 0:03:30]} 20. Bh5 {[%emt 0:13:11]} Bd7 {[%emt 0:03:13]} 21. Nd3 {[%emt 0:13:13]} Nc4 {[%emt 0:03:43]} 22. Qe2 {[%emt 0:02:19]} h3 {[%emt 0:01:44]} 23. g3 {[%emt 0:03:24]} b5 {[%emt 0:05:51]} 24. axb5 {[%emt 0:08:49]} axb5 {[%emt 0:00:14]} 25. Rxa8 {[%emt 0:00:34]} Rxa8 {[%emt 0:00:05]} 26. Bc1 {[%emt 0:00:58]} Rf8 {[%emt 0:02:48]} 27. Bg4 {[%emt 0:03:35]} b4 {[%emt 0:06:20]} 28. Nd1 {[%emt 0:02:06]} f5 {[%emt 0:11:09]} 29. Nf4 {[%emt 0:00:58]} Ne5 {[%emt 0:01:50]} 30. Bxh3 {[%emt 0:01:28]} fxe4 {[%emt 0:00:45]} 31. Bxd7 {[%emt 0:02:04]} Qxd7 {[%emt 0:00:06]} 32. Qxe4 {[%emt 0:00:15]} Kg8 {[%emt 0:00:39]} 33. Ne3 {[%emt 0:02:35]} Ng5 {[%emt 0:00:36]} 34. Qg2 {[%emt 0:00:23]} Bh8 {[%emt 0:00:55]} 35. h4 {[%emt 0:04:04]} Qh7 {[%emt 0:00:40]} 36. b3 {[%emt 0:11:12]} Ne4 {[%emt 0:00:57]} 37. Bb2 {[%emt 0:01:37]} Bg7 {[%emt 0:01:38]} 38. Ne6 {[%emt 0:00:49]} Rxf1+ {[%emt 0:00:12]} 39. Nxf1 {[%emt 0:00:04]} Qf5 {[%emt 0:01:12]} 40. Nf4 {[%emt 0:04:05]} Ng4 {[%emt 0:00:23]} 41. Bxg7 {[%emt 0:04:38]} Kxg7 {[%emt 0:01:13]} 42. Qf3 {[%emt 0:08:42]} Kg8 {[%emt 0:06:03]} 43. Ne3 {[%emt 0:03:47]} Nxe3 {[%emt 0:00:22]} 44. Qxe3 {[%emt 0:00:05]} Qe5 {[%emt 0:00:17]} 45. Kg2 {[%emt 0:07:03]} Qb2+ {[%emt 0:12:12]} 46. Kf3 {[%emt 0:01:15]} Nd2+ {[%emt 0:01:35]} 47. Kg4 {[%emt 0:00:24]} Nxb3 {[%emt 0:00:49]} 48. Qe6+ {[%emt 0:02:21]} Kh7 {[%emt 0:01:01]} 49. Qg6+ {[%emt 0:05:35]} Kh8 {[%emt 0:00:09]} 50. Qe8+ {[%emt 0:00:15]} Kh7 {[%emt 0:00:06]} 51. Qg6+ {[%emt 0:01:44]} Kh8 {[%emt 0:00:02]} 52. Qh6+ {[%emt 0:00:14]} Kg8 {[%emt 0:00:07]} 53. Qe6+ {[%emt 0:00:06]} 1/2-1/2

[Event "WJCC U20 Girls 2019"]
[Site "New Delhi"]
[Date "2019.10.23"]
[Round "9.12"]
[White "Priyanka, Kumari"]
[Black "Kiolbasa, Oliwia"]
[Result "0-1"]
[ECO "C42"]
[WhiteElo "1921"]
[BlackElo "2223"]
[Annotator "ChessBase"]
[PlyCount "94"]
[EventDate "2019.10.15"]
[EventType "swiss"]
[EventCountry "IND"]
[SourceTitle "playchess.com"]
[Source "ChessBase"]
[SourceQuality "1"]
[TimeControl "40/5400+30:1800+30"]

1. e4 {[%emt 0:00:00]} e5 {[%emt 0:00:00]} 2. Nf3 {[%emt 0:00:00]} Nf6 {[%emt 0:00:00]} 3. Nc3 {[%emt 0:02:49]} Bb4 {[%emt 0:00:59]} 4. Nxe5 {[%emt 0:05:25]} O-O {[%emt 0:01:30]} 5. Be2 {[%emt 0:04:09]} Re8 {[%emt 0:05:42]} 6. Nd3 {[%emt 0:05:05]} Bxc3 {[%emt 0:01:30]} 7. dxc3 {[%emt 0:00:37]} Nxe4 {[%emt 0:00:28]} 8. O-O {[%emt 0:02:18]} d6 {[%emt 0:01:57]} 9. Re1 {[%emt 0:04:23]} Nd7 {[%emt 0:03:01]} 10. Nf4 {[%emt 0:06:14]} Ndf6 {[%emt 0:04:19]} 11. Be3 {[%emt 0:04:05]} h6 {[%emt 0:01:56]} 12. Nh5 {[%emt 0:11:58]} Bf5 {[%emt 0:06:39]} 13. Qd4 {[%emt 0:11:51]} Nxh5 {[%emt 0:05:59]} 14. Bxh5 {[%emt 0:00:09]} Nf6 {[%emt 0:00:20]} 15. Bf3 {[%emt 0:02:32]} Be4 {[%emt 0:01:44]} 16. Bxe4 {[%emt 0:02:37]} Rxe4 {[%emt 0:02:47]} 17. Qd3 {[%emt 0:00:18]} Qe7 {[%emt 0:00:57]} 18. f3 {[%emt 0:00:56]} Re5 {[%emt 0:07:09]} 19. Bf2 {[%emt 0:00:32]} Re8 {[%emt 0:00:57]} 20. Bg3 {[%emt 0:02:21]} Rxe1+ {[%emt 0:00:39]} 21. Rxe1 {[%emt 0:00:05]} Qd7 {[%emt 0:00:26]} 22. Re3 {[%emt 0:03:28]} Rxe3 {[%emt 0:04:13]} 23. Qxe3 {[%emt 0:00:05]} Qb5 {[%emt 0:00:23]} 24. b3 {[%emt 0:05:03]} Qd5 {[%emt 0:04:54]} 25. Qd4 {[%emt 0:04:34]} Qf5 {[%emt 0:00:58]} 26. Qd2 {[%emt 0:02:51]} Qc5+ {[%emt 0:02:55]} 27. Bf2 {[%emt 0:04:58]} Qa3 {[%emt 0:00:11]} 28. Bd4 {[%emt 0:00:58]} Qxa2 {[%emt 0:01:56]} 29. Bxf6 {[%emt 0:01:24]} gxf6 {[%emt 0:00:02]} 30. h4 {[%emt 0:01:28]} Kg7 {[%emt 0:01:33]} 31. Qd3 {[%emt 0:00:53]} Qa5 {[%emt 0:01:31]} 32. Kh1 {[%emt 0:01:14]} Qe5 {[%emt 0:04:34]} 33. Qc4 {[%emt 0:01:35]} c6 {[%emt 0:00:21]} 34. Qg4+ {[%emt 0:01:53]} Kh7 {[%emt 0:00:15]} 35. Qb4 {[%emt 0:05:41]} b5 {[%emt 0:01:42]} 36. c4 {[%emt 0:02:40]} Qd4 {[%emt 0:01:51]} 37. h5 {[%emt 0:00:38]} bxc4 {[%emt 0:01:57]} 38. bxc4 {[%emt 0:00:09]} Qa1+ {[%emt 0:01:38]} 39. Kh2 {[%emt 0:00:18]} Qe5+ {[%emt 0:00:08]} 40. Kh1 {[%emt 0:01:09]} Qxh5+ {[%emt 0:00:11]} 41. Kg1 {[%emt 0:30:03]} Qc5+ {[%emt 0:30:29]} 42. Qxc5 {[%emt 0:00:04]} dxc5 {[%emt 0:00:04]} 43. Kf2 {[%emt 0:00:11]} Kg6 {[%emt 0:00:44]} 44. Ke3 {[%emt 0:00:08]} Kg5 {[%emt 0:00:16]} 45. g3 {[%emt 0:00:11]} f5 {[%emt 0:00:29]} 46. f4+ {[%emt 0:00:13]} Kg4 {[%emt 0:00:06]} 47. Kf2 {[%emt 0:00:03]} a5 {[%emt 0:00:05]} 0-1

[Event "WJCC U20 Girls 2019"]
[Site "New Delhi"]
[Date "2019.10.23"]
[Round "9.15"]
[White "Narva, Mai"]
[Black "Sapale Saloni"]
[Result "1/2-1/2"]
[ECO "B90"]
[WhiteElo "2378"]
[BlackElo "2142"]
[Annotator "ChessBase"]
[PlyCount "90"]
[EventDate "2019.10.15"]
[EventType "swiss"]
[EventCountry "IND"]
[SourceTitle "playchess.com"]
[Source "ChessBase"]
[SourceQuality "1"]
[TimeControl "40/5400+30:1800+30"]

1. e4 {[%emt 0:00:00]} c5 {[%emt 0:00:00]} 2. Nf3 {[%emt 0:00:00]} d6 {[%emt 0:00:00]} 3. d4 {[%emt 0:01:26]} Nf6 {[%emt 0:00:00]} 4. Nc3 {[%emt 0:01:06]} cxd4 {[%emt 0:00:09]} 5. Nxd4 {[%emt 0:00:12]} a6 {[%emt 0:00:10]} 6. a4 {[%emt 0:04:03]} e5 {[%emt 0:00:16]} 7. Nb3 {[%emt 0:00:19]} Be6 {[%emt 0:01:05]} 8. Bg5 {[%emt 0:04:28]} Nbd7 {[%emt 0:09:38]} 9. Be2 {[%emt 0:01:41]} Be7 {[%emt 0:01:22]} 10. O-O {[%emt 0:02:34]} O-O {[%emt 0:00:47]} 11. a5 {[%emt 0:05:27]} Rc8 {[%emt 0:04:56]} 12. Be3 {[%emt 0:11:15]} Qc7 {[%emt 0:03:20]} 13. Bf3 {[%emt 0:06:18]} Rfd8 {[%emt 0:02:48]} 14. h3 {[%emt 0:02:25]} Qc6 {[%emt 0:03:58]} 15. Qd2 {[%emt 0:03:50]} h6 {[%emt 0:05:57]} 16. Rfd1 {[%emt 0:02:20]} Nh7 {[%emt 0:02:49]} 17. Be2 {[%emt 0:14:14]} Nhf6 {[%emt 0:03:10]} 18. f3 {[%emt 0:03:36]} Nf8 {[%emt 0:06:31]} 19. Bb6 {[%emt 0:05:06]} Rd7 {[%emt 0:00:25]} 20. Qe3 {[%emt 0:01:22]} Ng6 {[%emt 0:10:23]} 21. Na4 {[%emt 0:08:19]} Nh5 {[%emt 0:05:28]} 22. Qd2 {[%emt 0:11:30]} Nhf4 {[%emt 0:04:55]} 23. Bf1 {[%emt 0:03:42]} Nh4 {[%emt 0:10:49]} 24. Qc3 {[%emt 0:02:26]} Nhg6 {[%emt 0:03:59]} 25. Bf2 {[%emt 0:03:59]} Qxc3 {[%emt 0:03:22]} 26. Nxc3 {[%emt 0:00:30]} h5 {[%emt 0:02:37]} 27. Rac1 {[%emt 0:00:45]} h4 {[%emt 0:01:07]} 28. Na4 {[%emt 0:00:27]} Rc6 {[%emt 0:01:09]} 29. c4 {[%emt 0:00:33]} Rdc7 {[%emt 0:01:04]} 30. Nd2 {[%emt 0:00:32]} Nf8 {[%emt 0:01:46]} 31. Nb6 {[%emt 0:00:24]} Nd7 {[%emt 0:02:49]} 32. b4 {[%emt 0:00:32]} Nxb6 {[%emt 0:00:48]} 33. Bxb6 {[%emt 0:00:16]} Rc8 {[%emt 0:00:05]} 34. Ra1 {[%emt 0:00:46]} Bd8 {[%emt 0:00:14]} 35. Be3 {[%emt 0:00:28]} Ra8 {[%emt 0:01:33]} 36. b5 {[%emt 0:00:33]} axb5 {[%emt 0:00:09]} 37. cxb5 {[%emt 0:00:07]} Rc3 {[%emt 0:00:16]} 38. Bxf4 {[%emt 0:00:55]} exf4 {[%emt 0:00:07]} 39. a6 {[%emt 0:00:30]} bxa6 {[%emt 0:00:48]} 40. Nb1 {[%emt 0:00:31]} Rcc8 {[%emt 0:00:55]} 41. bxa6 {[%emt 0:02:21]} Bb6+ {[%emt 0:12:59]} 42. Kh2 {[%emt 0:00:57]} Bc5 {[%emt 0:08:32]} 43. Nc3 {[%emt 0:05:21]} Rc6 {[%emt 0:03:35]} 44. Na4 {[%emt 0:09:08]} Bb3 {[%emt 0:07:14]} 45. Rdb1 {[%emt 0:01:38]} Bxa4 {[%emt 0:00:17]} 1/2-1/2

[Event "WJCC U20 Girls 2019"]
[Site "New Delhi"]
[Date "2019.10.23"]
[Round "9.17"]
[White "Diakonova, Ekaterina"]
[Black "Rindhiya V"]
[Result "1-0"]
[ECO "C99"]
[WhiteElo "2231"]
[BlackElo "1817"]
[Annotator "ChessBase"]
[PlyCount "91"]
[EventDate "2019.10.15"]
[EventType "swiss"]
[EventCountry "IND"]
[SourceTitle "playchess.com"]
[Source "ChessBase"]
[SourceQuality "1"]
[TimeControl "40/5400+30:1800+30"]

1. e4 e5 2. Nf3 Nc6 3. Bb5 a6 4. Ba4 Nf6 5. O-O Be7 6. Re1 b5 7. Bb3 O-O 8. h3 d6 9. c3 Na5 10. Bc2 c5 11. d4 Qc7 12. Nbd2 cxd4 13. cxd4 Nc6 14. Nb3 a5 15. Be3 a4 16. Nbd2 Bd7 17. Rc1 Rfc8 18. Bd3 Qb7 19. Qe2 Rab8 20. Bb1 Rc7 21. Nf1 Rbc8 22. Rcd1 g6 23. Bg5 Qb6 24. Bxf6 Bxf6 25. Ne3 Ne7 26. dxe5 dxe5 27. Nd5 Nxd5 28. exd5 Qd6 29. Nd2 Bg7 30. Ne4 Qf8 31. a3 f5 32. d6 Rc6 33. Ba2+ Kh8 34. Ng5 h6 35. Nf7+ Kh7 36. Nxe5 Bxe5 37. Qxe5 Re8 38. Qe7+ Rxe7 39. dxe7 Qe8 40. Rxd7 Rc8 41. Red1 Kg7 42. Rd8 Qxe7 43. R8d7 Qxd7 44. Rxd7+ Kf6 45. f4 Rc2 46. Rf7# 1-0

[Event "WJCC U20 Girls 2019"]
[Site "New Delhi"]
[Date "2019.10.23"]
[Round "9.18"]
[White "Mrudul Dehankar"]
[Black "Avetisyan, Mariam"]
[Result "0-1"]
[ECO "C11"]
[WhiteElo "2227"]
[BlackElo "2110"]
[Annotator "ChessBase"]
[PlyCount "174"]
[EventDate "2019.10.15"]
[EventType "swiss"]
[EventCountry "IND"]
[SourceTitle "playchess.com"]
[Source "ChessBase"]
[SourceQuality "1"]
[TimeControl "40/5400+30:1800+30"]

1. e4 {[%emt 0:00:00]} e6 {[%emt 0:00:00]} 2. Nf3 {[%emt 0:00:00]} d5 {[%emt 0:00:00]} 3. Nc3 {[%emt 0:00:00]} Nf6 {[%emt 0:00:00]} 4. e5 {[%emt 0:00:00]} Nfd7 {[%emt 0:00:00]} 5. d4 {[%emt 0:00:03]} c5 {[%emt 0:00:00]} 6. dxc5 {[%emt 0:00:15]} Nc6 {[%emt 0:00:02]} 7. Bf4 {[%emt 0:00:08]} Nxc5 {[%emt 0:00:10]} 8. a3 {[%emt 0:02:12]} a6 {[%emt 0:03:55]} 9. h4 {[%emt 0:04:11]} Be7 {[%emt 0:01:14]} 10. h5 {[%emt 0:00:30]} b5 {[%emt 0:21:41]} 11. Nd4 {[%emt 0:22:22]} Nxd4 {[%emt 0:10:33]} 12. Qxd4 {[%emt 0:00:06]} Nd7 {[%emt 0:10:48]} 13. Qe3 {[%emt 0:09:41]} Qa5 {[%emt 0:13:08]} 14. Rd1 {[%emt 0:17:35]} b4 {[%emt 0:14:38]} 15. axb4 {[%emt 0:01:04]} Qxb4 {[%emt 0:00:05]} 16. Be2 {[%emt 0:03:03]} Bc5 {[%emt 0:03:40]} 17. Qd2 {[%emt 0:03:04]} Bb7 {[%emt 0:01:39]} 18. Bf3 {[%emt 0:05:17]} O-O {[%emt 0:06:32]} 19. O-O {[%emt 0:04:21]} Rac8 {[%emt 0:03:52]} 20. Bg3 {[%emt 0:08:18]} Be7 {[%emt 0:02:04]} 21. Ne2 {[%emt 0:08:02]} Qxd2 {[%emt 0:02:19]} 22. Rxd2 {[%emt 0:00:03]} Bg5 {[%emt 0:00:30]} 23. Bf4 {[%emt 0:05:33]} Bxf4 {[%emt 0:00:04]} 24. Nxf4 {[%emt 0:00:02]} Nxe5 {[%emt 0:00:07]} 25. Be2 {[%emt 0:00:12]} Nc4 {[%emt 0:01:18]} 26. Rd3 {[%emt 0:01:43]} Nd6 {[%emt 0:03:09]} 27. Rc1 {[%emt 0:02:16]} Rfd8 {[%emt 0:01:10]} 28. Ra3 {[%emt 0:01:19]} Nb5 {[%emt 0:00:19]} 29. Rb3 {[%emt 0:02:03]} Bc6 {[%emt 0:00:26]} 30. c3 {[%emt 0:00:58]} Ra8 {[%emt 0:00:28]} 31. Ra1 {[%emt 0:00:21]} Rdb8 {[%emt 0:00:27]} 32. Nd3 {[%emt 0:00:42]} a5 {[%emt 0:00:16]} 33. Ne5 {[%emt 0:00:32]} Be8 {[%emt 0:00:09]} 34. Kf1 {[%emt 0:00:27]} f6 {[%emt 0:00:23]} 35. Nd3 {[%emt 0:00:32]} Kf8 {[%emt 0:00:34]} 36. Nf4 {[%emt 0:00:29]} Ke7 {[%emt 0:00:34]} 37. c4 {[%emt 0:00:34]} dxc4 {[%emt 0:00:25]} 38. Bxc4 {[%emt 0:00:19]} e5 {[%emt 0:00:17]} 39. Nd5+ {[%emt 0:00:34]} Kf8 {[%emt 0:00:56]} 40. h6 {[%emt 0:00:31]} Nd6 {[%emt 0:00:39]} 41. hxg7+ {[%emt 0:13:32]} Kxg7 {[%emt 0:00:26]} 42. Nc7 {[%emt 0:01:13]} Nxc4 {[%emt 0:05:44]} 43. Rg3+ {[%emt 0:00:47]} Bg6 {[%emt 0:00:50]} 44. Nxa8 {[%emt 0:00:03]} Rxa8 {[%emt 0:00:03]} 45. b3 {[%emt 0:00:58]} Nd6 {[%emt 0:02:00]} 46. Rc3 {[%emt 0:01:33]} Nb5 {[%emt 0:07:49]} 47. Rc5 {[%emt 0:01:52]} Nd4 {[%emt 0:00:22]} 48. Raxa5 {[%emt 0:01:15]} Rxa5 {[%emt 0:00:01]} 49. Rxa5 {[%emt 0:00:01]} Nxb3 {[%emt 0:00:06]} 50. Ra3 {[%emt 0:01:29]} Nd4 {[%emt 0:01:00]} 51. f3 {[%emt 0:00:44]} h5 52. Kf2 {[%emt 0:00:55]} Bf7 {[%emt 0:03:06]} 53. Ra4 {[%emt 0:01:08]} Kg6 {[%emt 0:02:17]} 54. Ra7 {[%emt 0:03:45]} Be6 {[%emt 0:00:43]} 55. Ra8 {[%emt 0:02:01]} Kg5 {[%emt 0:03:01]} 56. Ra4 {[%emt 0:01:44]} h4 {[%emt 0:04:33]} 57. Ke3 {[%emt 0:01:21]} Nf5+ {[%emt 0:00:29]} 58. Kf2 {[%emt 0:00:12]} Ng3 {[%emt 0:01:32]} 59. Ra6 {[%emt 0:00:43]} Bf5 {[%emt 0:00:20]} 60. Ra8 {[%emt 0:00:58]} Bg6 {[%emt 0:01:03]} 61. Ra5 {[%emt 0:00:36]} Kf4 {[%emt 0:01:52]} 62. Ra6 {[%emt 0:00:17]} Kg5 {[%emt 0:00:40]} 63. Ra5 {[%emt 0:00:03]} Bh5 {[%emt 0:01:11]} 64. Rb5 {[%emt 0:01:42]} Kf4 {[%emt 0:00:52]} 65. Rb4+ {[%emt 0:00:46]} e4 {[%emt 0:00:12]} 66. fxe4 {[%emt 0:00:55]} Nxe4+ {[%emt 0:00:03]} 67. Kg1 {[%emt 0:00:07]} f5 {[%emt 0:00:25]} 68. Kh2 {[%emt 0:00:13]} Kg4 {[%emt 0:00:48]} 69. Ra4 {[%emt 0:01:24]} Bg6 {[%emt 0:00:40]} 70. Ra6 {[%emt 0:00:22]} Be8 {[%emt 0:00:24]} 71. Rb6 {[%emt 0:00:59]} Ng5 {[%emt 0:00:22]} 72. Rb4+ {[%emt 0:01:32]} f4 {[%emt 0:00:05]} 73. Rb3 {[%emt 0:01:06]} Bc6 {[%emt 0:00:21]} 74. Rb4 {[%emt 0:00:44]} Be4 {[%emt 0:00:21]} 75. Kg1 {[%emt 0:00:35]} Kg3 {[%emt 0:02:43]} 76. Rb5 {[%emt 0:00:01]} Kg4 {[%emt 0:00:20]} 77. Rb4 {[%emt 0:00:01]} f3 {[%emt 0:00:12]} 78. gxf3+ {[%emt 0:00:34]} Nxf3+ {[%emt 0:00:04]} 79. Kh1 {[%emt 0:01:18]} Ng5+ {[%emt 0:00:12]} 80. Kh2 {[%emt 0:00:27]} h3 {[%emt 0:00:53]} 81. Ra4 {[%emt 0:00:28]} Nf3+ {[%emt 0:00:17]} 82. Kh1 {[%emt 0:00:02]} Nd2+ {[%emt 0:00:11]} 83. Kg1 {[%emt 0:00:49]} Kg3 {[%emt 0:00:06]} 84. Ra3+ {[%emt 0:00:25]} Bf3 {[%emt 0:00:19]} 85. Rxf3+ {[%emt 0:00:06]} Nxf3+ {[%emt 0:00:03]} 86. Kh1 {[%emt 0:00:03]} Ne1 {[%emt 0:00:07]} 87. Kg1 {[%emt 0:00:07]} Nd3 {[%emt 0:00:05]} 0-1

[Event "WJCC U20 Girls 2019"]
[Site "New Delhi"]
[Date "2019.10.23"]
[Round "9.19"]
[White "Olde, Margareth"]
[Black "Ghosh Samriddhaa"]
[Result "1/2-1/2"]
[ECO "D30"]
[WhiteElo "2205"]
[BlackElo "1867"]
[Annotator "ChessBase"]
[PlyCount "88"]
[EventDate "2019.10.15"]
[EventType "swiss"]
[EventCountry "IND"]
[SourceTitle "playchess.com"]
[Source "ChessBase"]
[SourceQuality "1"]
[TimeControl "40/5400+30:1800+30"]

1. d4 {[%emt 0:00:00]} d5 {[%emt 0:00:00]} 2. c4 {[%emt 0:00:00]} e6 {[%emt 0:00:00]} 3. Nf3 {[%emt 0:00:00]} c6 {[%emt 0:00:00]} 4. g3 {[%emt 0:00:00]} Nf6 {[%emt 0:00:41]} 5. Bg2 {[%emt 0:00:00]} Be7 {[%emt 0:00:41]} 6. O-O {[%emt 0:00:18]} O-O {[%emt 0:00:14]} 7. Qc2 {[%emt 0:00:27]} Nbd7 {[%emt 0:00:40]} 8. Rd1 {[%emt 0:00:16]} b6 {[%emt 0:02:12]} 9. Bf4 {[%emt 0:00:50]} Bb7 {[%emt 0:02:32]} 10. Ne5 {[%emt 0:00:13]} Rc8 {[%emt 0:03:46]} 11. Nc3 {[%emt 0:00:37]} c5 {[%emt 0:13:59]} 12. cxd5 {[%emt 0:00:19]} exd5 {[%emt 0:04:38]} 13. e3 {[%emt 0:01:15]} cxd4 {[%emt 0:09:16]} 14. exd4 {[%emt 0:00:16]} Bb4 {[%emt 0:20:35]} 15. Qb3 {[%emt 0:11:07]} Bxc3 {[%emt 0:01:08]} 16. bxc3 {[%emt 0:00:08]} h6 {[%emt 0:08:05]} 17. Rac1 {[%emt 0:08:44]} Re8 {[%emt 0:03:56]} 18. h4 {[%emt 0:11:19]} Nf8 {[%emt 0:03:16]} 19. Qa4 {[%emt 0:12:05]} a5 {[%emt 0:03:55]} 20. c4 {[%emt 0:10:51]} Ne6 {[%emt 0:01:29]} 21. Be3 {[%emt 0:01:02]} Ba6 {[%emt 0:03:04]} 22. cxd5 {[%emt 0:07:06]} Rxc1 {[%emt 0:03:26]} 23. Rxc1 {[%emt 0:06:03]} b5 {[%emt 0:01:07]} 24. Qb3 {[%emt 0:03:58]} a4 {[%emt 0:00:07]} 25. Qd3 {[%emt 0:05:30]} Nxd5 {[%emt 0:06:30]} 26. Nc6 {[%emt 0:01:49]} Qd6 {[%emt 0:02:27]} 27. Bxd5 {[%emt 0:00:20]} Qxd5 {[%emt 0:00:06]} 28. Nb4 {[%emt 0:00:08]} Qd6 {[%emt 0:02:52]} 29. Nxa6 {[%emt 0:00:10]} Qxa6 {[%emt 0:00:03]} 30. d5 {[%emt 0:00:47]} Rd8 {[%emt 0:01:24]} 31. Qf5 {[%emt 0:05:22]} Nf8 {[%emt 0:00:25]} 32. Bf4 {[%emt 0:02:40]} Qg6 {[%emt 0:02:17]} 33. Qe5 {[%emt 0:02:38]} f6 {[%emt 0:00:30]} 34. Qd4 {[%emt 0:04:51]} Qf5 {[%emt 0:00:37]} 35. Rd1 {[%emt 0:02:04]} Ne6 {[%emt 0:00:35]} 36. Qd2 {[%emt 0:02:34]} Nxf4 {[%emt 0:00:08]} 37. gxf4 {[%emt 0:00:28]} Qg4+ {[%emt 0:00:31]} 38. Kf1 {[%emt 0:00:06]} Qh3+ {[%emt 0:00:43]} 39. Kg1 {[%emt 0:00:06]} Qg4+ {[%emt 0:00:26]} 40. Kf1 {[%emt 0:00:04]} Qh3+ {[%emt 0:00:29]} 41. Kg1 {[%emt 0:30:07]} Qg4+ {[%emt 0:20:26]} 42. Kf1 {[%emt 0:00:00]} Qh3+ {[%emt 0:02:55]} 43. Kg1 {[%emt 0:00:00]} Qg4+ {[%emt 0:00:17]} 44. Kf1 {[%emt 0:00:00]} Qh3+ {[%emt 0:02:14]} 1/2-1/2